bitfinex-derivatives/quotes_SOLF0:USTF0_20250911
["timestamp","ask_amount","ask_price","bid_price","bid_amount"]
[1757578231457,2.58611576,223.08,223.01,4.99800746]
[1757578231652,10.7086003,223.07,223.0,28.36]
[1757578231857,7.09,223.07,223.0,28.36]
[1757578232864,2.58611576,223.08,223.0,28.36]
[1757578233060,10.70690644,223.07,223.0,28.36]
[1757578233265,7.09,223.07,223.0,28.36]
[1757578233467,2.58611576,223.1,223.01,7.44]
[1757578233659,3.61508437,223.09,223.01,7.44]
[1757578233859,2.58611576,223.1,223.01,7.44]
[1757578235163,7.09,223.09,223.01,7.44]
[1757578235864,7.09,223.07,223.0,20.92]
[1757578236269,0.03011192,223.06,223.0,20.92]
[1757578236467,7.09,223.05,223.01,7.47131597]
[1757578237161,7.09,223.05,223.02,7.44]
[1757578237767,0.03011192,223.06,223.01,0.03131597]
[1757578237969,7.09,223.05,223.01,0.03131597]
[1757578238167,0.03011192,223.06,223.01,0.03131597]
[1757578238766,7.09,223.05,223.01,0.03131597]
[1757578239167,0.03011192,223.06,223.01,0.03131597]
[1757578239768,7.09,223.05,223.02,7.44]
[1757578239970,0.03011192,223.06,223.01,0.03131597]
[1757578240270,7.12011192,223.06,223.02,7.44]
[1757578240459,7.09,223.05,223.01,0.03131597]
[1757578240768,7.09,223.05,223.01,7.47131597]
[1757578241568,7.09,223.05,223.01,0.03131597]
[1757578241969,7.09,223.05,223.01,7.47131597]
[1757578242669,0.03011192,223.06,223.01,7.47131597]
[1757578242870,7.09,223.05,223.01,7.47131597]
[1757578243466,0.03011192,223.06,223.02,7.44]
[1757578243664,7.12011192,223.06,223.02,7.44]
[1757578244669,7.12011192,223.06,223.01,0.03131597]
[1757578245274,7.12011192,223.06,223.02,7.44]
[1757578246071,7.12011192,223.06,223.01,0.03131597]
[1757578246266,7.12011192,223.06,223.02,7.44]
[1757578246773,7.12011192,223.06,223.01,0.03131597]
[1757578247775,7.12011192,223.06,223.02,7.44]
[1757578248274,0.03011192,223.06,223.01,0.03131597]
[1757578248773,0.03011192,223.06,223.02,7.44]
[1757578248974,0.03011192,223.06,223.01,0.03131597]
[1757578249377,7.12011192,223.06,223.02,7.44]
[1757578249877,7.12011192,223.06,223.01,0.03131597]
[1757578250078,7.12011192,223.06,223.02,7.44]
[1757578250577,7.09,223.05,223.02,7.44]
[1757578251674,7.09,223.05,223.01,0.03131597]
[1757578251973,0.03011192,223.06,223.01,0.03131597]
[1757578252178,0.03011192,223.06,223.02,7.44]
[1757578252478,0.03011192,223.06,223.01,0.03131597]
[1757578252674,0.03011192,223.06,223.02,7.44]
[1757578252878,0.03011192,223.06,223.01,0.03131597]
[1757578253478,7.12011192,223.06,223.02,7.44]
[1757578255077,7.12011192,223.06,223.01,0.03131597]
[1757578255381,7.12011192,223.06,223.02,7.44]
[1757578256878,7.12011192,223.06,223.01,0.03131597]
[1757578257076,7.12011192,223.06,223.02,7.44]
[1757578257271,7.12011192,223.06,223.02,7.36]
[1757578257778,7.48011192,223.06,223.02,7.36]
[1757578258172,7.48011192,223.06,223.01,0.03131597]
[1757578258376,7.48011192,223.06,223.02,7.36]
[1757578258781,7.48011192,223.06,223.01,0.03131597]
[1757578259785,7.48011192,223.06,223.02,7.36]
[1757578259984,7.48011192,223.06,223.01,0.03131597]
[1757578260385,7.48011192,223.06,223.02,7.36]
[1757578260587,0.03011192,223.06,223.02,7.36]
[1757578260779,0.03011192,223.06,223.01,0.03131597]
[1757578261084,7.48011192,223.06,223.01,0.03131597]
[1757578261384,7.48011192,223.06,223.02,109.54]
[1757578261580,7.48011192,223.06,223.03,7.36]
[1757578261885,7.48011192,223.06,223.02,109.54]
[1757578262080,7.48011192,223.06,223.03,7.36]
[1757578262986,7.48011192,223.06,223.02,109.54]
[1757578262987,7.45,223.05,223.02,109.54]
[1757578263187,0.03011192,223.06,223.02,109.54]
[1757578263376,7.45,223.05,223.02,109.54]
[1757578263580,0.03011192,223.06,223.02,109.54]
[1757578263775,7.45,223.05,223.02,109.54]
[1757578263985,0.03011192,223.06,223.02,109.54]
[1757578264286,7.45,223.05,223.02,109.54]
[1757578264782,0.03011192,223.06,223.02,109.54]
[1757578264987,7.45,223.05,223.02,109.54]
[1757578265184,0.03011192,223.06,223.01,0.03131597]
[1757578265489,7.45,223.05,223.01,0.03131597]
[1757578266185,0.03011192,223.06,223.01,0.03131597]
[1757578266683,7.45,223.05,223.01,0.03131597]
[1757578266892,7.45,223.05,223.02,7.36]
[1757578267185,0.03011192,223.06,223.01,0.03131597]
[1757578267986,7.45,223.05,223.02,7.36]
[1757578268287,0.03011192,223.06,223.02,7.36]
[1757578268587,7.45,223.05,223.02,7.36]
[1757578268782,7.45,223.05,223.01,0.03131597]
[1757578269392,0.03011192,223.06,223.01,0.03131597]
[1757578270187,7.45,223.05,223.01,0.03131597]
[1757578271293,0.03011192,223.06,223.01,0.03131597]
[1757578271485,7.45,223.05,223.01,0.03131597]
[1757578271686,0.03011192,223.06,223.01,0.03131597]
[1757578271991,7.45,223.05,223.01,0.03131597]
[1757578272689,0.03011192,223.06,223.01,0.03131597]
[1757578273081,3.59532709,223.05,223.01,0.03131597]
[1757578273279,7.45,223.05,223.01,0.03131597]
[1757578273487,0.03011192,223.06,223.01,0.03131597]
[1757578273786,7.45,223.04,223.01,0.03131597]
[1757578274096,7.45,223.03,223.01,0.03131597]
[1757578274582,1.6553645,223.04,223.01,0.03131597]
[1757578274983,7.45,223.03,223.01,0.03131597]
[1757578275188,7.45,223.05,223.01,7.39131597]
[1757578275587,0.03011192,223.06,223.01,7.39131597]
[1757578275792,7.45,223.04,223.01,7.39131597]
[1757578275989,7.45,223.04,223.01,0.03131597]
[1757578276192,7.48011192,223.06,223.02,7.36]
[1757578276393,3.5982575,223.05,223.02,7.36]
[1757578276590,0.03011192,223.06,223.02,7.36]
[1757578276790,0.03011192,223.06,223.01,0.03131597]
[1757578277495,0.03011192,223.06,223.02,7.36]
[1757578277993,0.03011192,223.06,223.01,6.68468793]
[1757578278495,0.03011192,223.06,223.02,7.36]
[1757578278697,0.03011192,223.06,223.01,6.68468793]
[1757578278991,0.03011192,223.06,223.02,7.36]
[1757578279294,7.48011192,223.06,223.02,7.36]
[1757578279798,7.48011192,223.06,223.01,0.03131597]
[1757578279990,7.48011192,223.06,223.02,7.36]
[1757578280195,7.48011192,223.06,223.01,0.03131597]
[1757578280790,7.48011192,223.06,223.02,7.36]
[1757578281187,7.48011192,223.06,223.01,0.03131597]
[1757578281597,7.48011192,223.06,223.02,7.36]
[1757578281898,0.03011192,223.06,223.01,0.03131597]
[1757578282495,0.03011192,223.06,223.02,7.36]
[1757578283396,0.03011192,223.06,223.01,0.03131597]
[1757578283799,0.03011192,223.06,223.02,7.36]
[1757578284192,0.03011192,223.06,223.01,0.03131597]
[1757578285296,7.48011192,223.06,223.01,0.03131597]
[1757578285698,7.48011192,223.06,223.02,7.36]
[1757578285893,7.48011192,223.06,223.01,0.03131597]
[1757578286399,0.03011192,223.06,223.01,0.03131597]
[1757578286601,0.03011192,223.06,223.02,7.36]
[1757578287101,0.03011192,223.06,223.01,5.02932343]
[1757578287400,0.03011192,223.06,223.02,7.05]
[1757578288000,0.03011192,223.06,223.01,5.02932343]
[1757578288201,0.03011192,223.06,223.02,7.05]
[1757578288893,0.03011192,223.06,223.02,13.70337196]
[1757578289098,7.41,223.13,223.04,8.7053645]
[1757578289294,3.59560951,223.12,223.06,7.05]
[1757578289496,3.59560951,223.11,223.05,109.52]
[1757578289696,7.41,223.13,223.06,7.05]
[1757578290200,7.41,223.13,223.07,0.03103733]
[1757578296005,7.41,223.11,223.07,0.03103733]
[1757578296400,1.6553645,223.09,223.05,109.52]
[1757578296704,1.6553645,223.1,223.07,0.03340415]
[1757578296897,7.41,223.09,223.07,0.03340415]
[1757578297099,1.6553645,223.1,223.05,109.52]
[1757578297305,7.41,223.09,223.06,0.03176914]
[1757578298001,1.6553645,223.1,223.06,0.03176914]
[1757578298708,7.41,223.2,223.06,7.08176914]
[1757578299007,7.41,223.13,223.06,7.05]
[1757578299208,7.41,223.13,223.11,0.02901033]
[1757578299597,1.6553645,223.14,223.11,0.02901033]
[1757578300707,7.41,223.22,223.11,0.02901033]
[1757578300909,7.41,223.13,223.11,0.02901033]
[1757578301606,7.41,223.11,223.05,109.52]
[1757578301808,1.6553645,223.09,223.05,109.52]
[1757578302709,7.41,223.08,223.05,109.52]
[1757578302910,1.68952611,223.09,223.05,109.54868982]
[1757578303510,7.41,223.08,223.05,109.54868982]
[1757578303710,1.68952611,223.09,223.05,109.54868982]
[1757578304207,7.41,223.08,223.05,109.54868982]
[1757578305211,1.68952611,223.09,223.05,109.54868982]
[1757578305411,7.41,223.08,223.05,109.54868982]
[1757578306003,1.68952611,223.09,223.05,109.54868982]
[1757578306208,7.41,223.08,223.05,109.54868982]
[1757578307315,7.41,223.08,223.05,116.59868982]
[1757578309023,7.41,223.08,223.05,109.54868982]
[1757578309215,0.03416161,223.09,223.06,7.05]
[1757578309418,0.03416161,223.09,223.05,109.54868982]
[1757578309619,0.03416161,223.09,223.06,7.05]
[1757578310018,0.03416161,223.09,223.05,109.54868982]
[1757578310216,0.03416161,223.09,223.06,7.05]
[1757578310619,0.03416161,223.09,223.05,109.54868982]
[1757578311015,0.03416161,223.09,223.06,7.05]
[1757578311221,0.03416161,223.09,223.05,109.54868982]
[1757578311518,0.03416161,223.09,223.06,7.05]
[1757578313430,0.03416161,223.09,223.05,109.54868982]
[1757578313630,0.03416161,223.09,223.06,7.05]
[1757578313832,0.03416161,223.09,223.05,109.54868982]
[1757578314521,0.03416161,223.09,223.06,7.05]
[1757578315120,0.03416161,223.09,223.05,109.54868982]
[1757578315322,0.03416161,223.09,223.06,7.05]
[1757578315727,0.03416161,223.09,223.05,109.54868982]
[1757578316032,0.03416161,223.09,223.06,7.05]
[1757578316726,0.03416161,223.09,223.05,109.54868982]
[1757578316932,0.03416161,223.09,223.06,7.05]
[1757578317122,0.03416161,223.09,223.06,7.34]
[1757578317321,0.03416161,223.09,223.05,109.54868982]
[1757578317730,0.03416161,223.09,223.06,7.34]
[1757578318343,0.03416161,223.09,223.05,109.54868982]
[1757578318735,0.03416161,223.09,223.06,7.34]
[1757578318931,0.03416161,223.09,223.05,109.54868982]
[1757578319132,0.03416161,223.09,223.06,7.34]
[1757578319437,0.03416161,223.09,223.05,109.54868982]
[1757578320429,0.03416161,223.09,223.06,7.34]
[1757578320733,7.29416161,223.09,223.06,7.34]
[1757578321537,0.03416161,223.09,223.05,109.54868982]
[1757578321738,0.03416161,223.09,223.06,7.34]
[1757578322133,0.03416161,223.09,223.05,109.54868982]
[1757578322833,0.03416161,223.09,223.06,7.34]
[1757578323535,0.03416161,223.09,223.05,109.54868982]
[1757578324637,0.03416161,223.09,223.06,7.34]
[1757578324837,0.03416161,223.09,223.05,109.54868982]
[1757578325233,0.03416161,223.09,223.06,7.34]
[1757578326333,0.03416161,223.09,223.05,109.54868982]
[1757578326836,0.03416161,223.09,223.06,7.34]
[1757578327937,0.03416161,223.09,223.05,109.54868982]
[1757578328134,0.03416161,223.09,223.06,7.34]
[1757578329140,0.03416161,223.09,223.05,109.54868982]
[1757578330430,0.03416161,223.09,223.06,7.34]
[1757578330636,0.03416161,223.09,223.05,109.54868982]
[1757578331142,0.03416161,223.09,223.06,7.34]
[1757578331441,0.03416161,223.09,223.05,109.54868982]
[1757578332038,0.03416161,223.09,223.06,7.34]
[1757578332242,0.03416161,223.09,223.05,109.54868982]
[1757578333342,0.03416161,223.09,223.06,7.34]
[1757578333542,0.03416161,223.09,223.05,109.54868982]
[1757578336838,0.03416161,223.09,223.06,7.34]
[1757578337241,0.03416161,223.09,223.05,109.54868982]
[1757578337843,0.03416161,223.09,223.06,7.34]
[1757578343751,0.03416161,223.09,223.06,12.33800746]
[1757578343948,0.03416161,223.09,223.07,7.34]
[1757578346255,0.03416161,223.09,223.06,4.99800746]
[1757578346456,0.03416161,223.09,223.07,7.34]
[1757578346656,0.03416161,223.09,223.06,4.99800746]
[1757578347362,0.03416161,223.09,223.07,7.46]
[1757578347655,0.03416161,223.09,223.06,4.99800746]
[1757578348451,0.03416161,223.09,223.07,7.46]
[1757578348657,0.03416161,223.09,223.06,4.99800746]
[1757578348855,0.03416161,223.09,223.07,7.46]
[1757578349355,0.03416161,223.09,223.06,4.99800746]
[1757578349656,0.03416161,223.09,223.07,7.46]
[1757578349861,0.03416161,223.09,223.06,4.99800746]
[1757578350452,0.03416161,223.09,223.07,7.46]
[1757578350651,0.03416161,223.09,223.06,4.99800746]
[1757578351048,0.03416161,223.09,223.07,7.46]
[1757578351256,99.42082453,223.23,223.07,4.99800746]
[1757578351257,7.18,223.17,223.07,4.99800746]
[1757578351456,3.62414386,223.16,223.08,7.46]
[1757578351652,7.18,223.17,223.1,7.46]
[1757578351852,3.62414238,223.16,223.1,7.46]
[1757578352052,7.18,223.17,223.1,7.46]
[1757578352254,3.62414238,223.16,223.1,7.46]
[1757578352553,7.18,223.17,223.11,0.02978236]
[1757578352754,10.80399315,223.16,223.11,0.02978236]
[1757578352955,7.18,223.16,223.11,0.02978236]
[1757578353163,7.18,223.22,223.12,7.46]
[1757578353354,7.10712372,223.21,223.12,7.46]
[1757578353553,3.62344836,223.2,223.12,7.46]
[1757578353755,3.62344836,223.19,223.12,7.46]
[1757578353960,3.62344836,223.18,223.12,7.46]
[1757578354161,7.18,223.2,223.12,7.46]
[1757578354360,3.6231098,223.19,223.12,7.46]
[1757578354554,3.6231098,223.18,223.12,7.46]
[1757578354750,7.18,223.22,223.12,7.46]
[1757578354949,3.62282793,223.21,223.12,7.46]
[1757578355157,3.62282793,223.2,223.15,0.03131163]
[1757578355357,7.18,223.22,223.16,7.46]
[1757578355557,3.6218439,223.21,223.16,7.46]
[1757578355854,3.6218439,223.2,223.16,7.46]
[1757578356060,7.18,223.26,223.16,7.46]
[1757578356359,7.18,223.24,223.16,7.46]
[1757578356557,7.10409178,223.23,223.16,7.46]
[1757578356862,3.62189275,223.22,223.16,7.46]
[1757578357053,3.62189275,223.21,223.16,7.46]
[1757578357261,3.62189275,223.2,223.15,109.41131163]
[1757578357459,7.18,223.22,223.16,7.46]
[1757578357654,3.62016314,223.21,223.15,109.41131163]
[1757578357860,3.62016314,223.2,223.16,7.46]
[1757578358164,7.18,223.22,223.16,7.46]
[1757578358461,3.61952908,223.21,223.15,109.41131163]
[1757578358649,3.61952908,223.2,223.16,7.46]
[1757578358849,7.18,223.22,223.16,7.46]
[1757578359050,3.61952854,223.21,223.16,7.46]
[1757578359253,10.79952854,223.2,223.15,109.41131163]
[1757578359558,7.18,223.2,223.16,7.46]
[1757578359758,7.18,223.2,223.15,109.41131163]
[1757578360259,7.18,223.2,223.16,7.46]
[1757578360858,2.58528197,223.23,223.16,7.46]
[1757578361063,10.79857549,223.22,223.16,7.46]
[1757578361361,2.58528197,223.23,223.16,7.46]
[1757578361362,7.18,223.2,223.16,7.46]
[1757578361552,7.18,223.22,223.16,7.46]
[1757578361756,7.18,223.2,223.16,7.46]
[1757578361959,7.18,223.2,223.15,109.41131163]
[1757578362162,7.18,223.2,223.16,7.46]
[1757578362364,7.18,223.2,223.15,109.41131163]
[1757578362862,7.18,223.2,223.16,7.46]
[1757578363058,7.18,223.2,223.15,109.41131163]
[1757578363059,2.58528197,223.19,223.15,0.03131163]
[1757578363261,7.18,223.17,223.15,0.03131163]
[1757578363564,3.61784648,223.18,223.14,0.03068973]
[1757578363565,7.18,223.18,223.14,0.03068973]
[1757578363759,7.18,223.16,223.14,0.03068973]
[1757578366369,7.18,223.16,223.14,7.49068973]
[1757578366660,7.18,223.18,223.14,0.03068973]
[1757578366968,7.18,223.18,223.15,7.46]
[1757578367365,9.76528197,223.21,223.15,7.46]
[1757578367565,3.61825358,223.2,223.15,7.46]
[1757578367765,9.76528197,223.21,223.15,7.46]
[1757578367969,3.6182245,223.2,223.15,7.46]
[1757578368174,3.6182245,223.19,223.14,0.03068973]
[1757578368369,9.76528197,223.21,223.15,7.46]
[1757578368570,3.61820379,223.2,223.14,0.03068973]
[1757578368770,3.61820379,223.19,223.15,7.46]
[1757578368965,9.76528197,223.21,223.15,7.46]
[1757578369169,3.61820379,223.2,223.14,0.03068973]
[1757578369374,3.61820379,223.19,223.15,7.46]
[1757578369572,9.76528197,223.21,223.15,7.46]
[1757578369768,3.61818769,223.2,223.14,0.03068973]
[1757578370071,3.61818769,223.19,223.15,7.46]
[1757578370374,9.76528197,223.21,223.15,7.46]
[1757578370575,3.61820515,223.2,223.15,7.46]
[1757578370762,3.61820515,223.19,223.15,7.46]
[1757578370963,9.76528197,223.21,223.15,7.46]
[1757578371163,3.61820515,223.2,223.15,7.46]
[1757578371469,3.61820515,223.19,223.14,0.03068973]
[1757578371678,9.76528197,223.21,223.15,7.46]
[1757578371972,3.61825632,223.2,223.15,7.46]
[1757578372173,3.61825632,223.19,223.15,7.46]
[1757578372362,7.18,223.22,223.15,7.46]
[1757578372567,3.61831248,223.21,223.15,7.46]
[1757578372770,3.61831248,223.2,223.14,0.03068973]
[1757578372966,7.18,223.22,223.15,7.46]
[1757578373175,3.61831248,223.21,223.15,7.46]
[1757578373374,3.61831248,223.2,223.15,7.46]
[1757578373570,7.18,223.22,223.15,7.46]
[1757578373773,3.61838294,223.21,223.15,7.46]
[1757578374078,3.61838294,223.2,223.15,7.46]
[1757578374275,7.18,223.24,223.15,7.46]
[1757578374578,7.18,223.22,223.15,7.46]
[1757578374777,3.6235078,223.21,223.15,7.46]
[1757578374977,3.6235078,223.2,223.15,7.46]
[1757578375180,7.18,223.21,223.15,7.46]
[1757578375377,3.62365943,223.2,223.14,0.03068973]
[1757578375576,7.18,223.21,223.14,7.49068973]
[1757578375771,3.62355088,223.2,223.14,7.49068973]
[1757578375977,7.18,223.21,223.14,7.49068973]
[1757578376177,3.62355088,223.2,223.14,7.49068973]
[1757578376380,7.18,223.21,223.14,7.49068973]
[1757578376578,3.62364503,223.2,223.14,7.49068973]
[1757578376880,7.18,223.21,223.14,7.49068973]
[1757578377076,3.62364503,223.2,223.14,7.49068973]
[1757578377276,7.18,223.21,223.14,7.49068973]
[1757578377481,3.62379135,223.2,223.14,7.49068973]
[1757578377778,7.18,223.21,223.14,7.49068973]
[1757578377974,3.62379135,223.2,223.14,7.49068973]
[1757578378176,7.18,223.21,223.14,7.49068973]
[1757578379873,2.58528197,223.26,223.14,7.49068973]
[1757578380078,10.58385518,223.25,223.14,7.49068973]
[1757578380280,3.62385518,223.24,223.14,7.46]
[1757578380482,3.62385518,223.23,223.17,0.03144442]
[1757578380779,3.62385518,223.22,223.11,14.47800746]
[1757578380979,6.96,223.24,223.12,7.18]
[1757578381180,10.58392916,223.23,223.19,7.18]
[1757578381376,10.58392916,223.22,223.19,7.18]
[1757578381584,6.96,223.22,223.19,7.18]
[1757578384785,1.65284241,223.25,223.19,7.18]
[1757578384982,3.62440572,223.24,223.19,7.18]
[1757578385189,3.62440572,223.23,223.19,7.18]
[1757578385491,10.58440572,223.22,223.19,7.18]
[1757578385690,6.96,223.22,223.19,7.18]
[1757578386693,1.65284241,223.25,223.19,7.18]
[1757578386892,6.96,223.23,223.19,7.18]
[1757578387092,6.96,223.21,223.19,7.18]
[1757578389891,6.96,223.24,223.18,0.03377048]
[1757578390189,6.96,223.22,223.19,7.18]
[1757578393300,6.96,223.22,223.18,0.03377048]
[1757578393803,6.96,223.25,223.19,7.18]
[1757578394098,3.62504642,223.24,223.18,0.03377048]
[1757578394294,3.62504642,223.23,223.18,0.03377048]
[1757578394594,8.61284241,223.26,223.19,7.18]
[1757578394789,3.62524582,223.25,223.19,7.18]
[1757578394993,3.62524582,223.24,223.19,7.18]
[1757578395300,3.62524582,223.23,223.18,0.03377048]
[1757578395500,6.96,223.25,223.19,7.18]
[1757578395695,3.62553046,223.24,223.19,7.18]
[1757578395901,3.62553046,223.23,223.18,0.03377048]
[1757578396102,6.96,223.25,223.19,7.18]
[1757578413119,7.25,223.28,223.19,7.18]
[1757578413414,3.62105228,223.27,223.2,21.4]
[1757578413620,7.25,223.28,223.21,7.27]
[1757578413813,3.62086205,223.27,223.21,7.30253629]
[1757578414023,7.25,223.28,223.21,7.30253629]
[1757578414322,3.62086205,223.27,223.21,7.30253629]
[1757578414621,7.25,223.28,223.21,7.30253629]
[1757578414822,3.62100161,223.27,223.21,7.30253629]
[1757578415119,7.25,223.28,223.21,7.30253629]
[1757578415316,3.62134977,223.27,223.21,7.30253629]
[1757578415517,7.25,223.28,223.21,7.30253629]
[1757578415717,3.6212056,223.27,223.21,7.30253629]
[1757578415918,7.25,223.28,223.21,7.30253629]
[1757578416117,3.62120461,223.27,223.21,7.30253629]
[1757578416418,7.25,223.28,223.21,7.30253629]
[1757578433936,7.25,223.28,223.21,0.03253629]
[1757578434131,7.25,223.26,223.21,0.03253629]
[1757578434634,7.25,223.28,223.21,0.03253629]
[1757578434831,7.25,223.26,223.21,0.03253629]
[1757578435033,7.25,223.28,223.21,0.03253629]
[1757578435231,3.49960379,223.27,223.21,0.03253629]
[1757578435437,7.25,223.25,223.21,0.03253629]
[1757578435733,1.65284241,223.26,223.21,0.03253629]
[1757578435935,7.25,223.25,223.21,0.03253629]
[1757578436635,1.65284241,223.26,223.21,0.03253629]
[1757578437230,7.25,223.25,223.21,0.03253629]
[1757578437441,1.65284241,223.26,223.21,0.03253629]
[1757578437734,1.65284241,223.26,223.21,7.05253629]
[1757578437927,7.25,223.25,223.21,7.05253629]
[1757578438126,1.65284241,223.26,223.21,7.05253629]
[1757578438431,7.25,223.25,223.21,7.05253629]
[1757578438636,1.65284241,223.26,223.21,7.05253629]
[1757578439131,7.25,223.25,223.21,7.05253629]
[1757578439331,1.65284241,223.26,223.21,7.05253629]
[1757578439529,7.25,223.25,223.21,7.05253629]
[1757578439735,1.65284241,223.26,223.21,7.05253629]
[1757578439932,7.25,223.25,223.21,7.05253629]
[1757578440132,1.65284241,223.26,223.21,7.05253629]
[1757578440529,7.25,223.25,223.21,0.03253629]
[1757578440836,1.65284241,223.26,223.21,0.03253629]
[1757578441036,7.25,223.25,223.21,0.03253629]
[1757578441235,7.25,223.25,223.21,7.05253629]
[1757578441636,1.65284241,223.26,223.21,7.05253629]
[1757578442333,2.58245083,223.29,223.21,7.05253629]
[1757578442534,7.25,223.27,223.21,7.05253629]
[1757578442731,7.25,223.25,223.21,0.03253629]
[1757578442938,7.25,223.28,223.21,0.03253629]
[1757578443137,7.25,223.26,223.21,0.03253629]
[1757578443338,3.50232501,223.25,223.21,0.03253629]
[1757578443538,7.25,223.28,223.21,0.03253629]
[1757578443741,7.25,223.26,223.21,0.03253629]
[1757578443934,7.25,223.24,223.21,0.03253629]
[1757578444135,7.25,223.22,223.21,0.03253629]
[1757578448136,2.58245083,223.3,223.21,0.03253629]
[1757578448341,14.2270938,223.29,223.21,0.03253629]
[1757578448542,7.25,223.27,223.21,0.03253629]
[1757578448737,6.9770938,223.26,223.21,0.03253629]
[1757578448934,7.25,223.24,223.21,0.03253629]
[1757578449132,7.25,223.29,223.21,0.03253629]
[1757578449338,7.25,223.27,223.21,0.03253629]
[1757578449537,7.25,223.25,223.21,0.03253629]
[1757578449845,7.25,223.29,223.21,0.03253629]
[1757578450046,7.25,223.27,223.21,0.03253629]
[1757578450246,7.25,223.25,223.21,0.03253629]
[1757578450446,7.25,223.29,223.21,0.03253629]
[1757578450648,7.25,223.27,223.21,0.03253629]
[1757578450847,7.25,223.25,223.21,0.03253629]
[1757578451341,9.83245083,223.22,223.12,12.01800746]
[1757578451548,7.25,223.21,223.12,7.02]
[1757578477366,7.25,223.21,223.13,7.07]
[1757578484472,7.25,223.21,223.13,12.06800746]
[1757578484666,7.25,223.21,223.13,4.99800746]
[1757578484862,7.25,223.21,223.14,7.07]
[1757578489480,7.25,223.21,223.14,92.83]
[1757578491670,7.28,223.25,223.14,92.83]
[1757578491874,7.28,223.23,223.15,7.07]
[1757578492075,3.46702361,223.22,223.15,7.07]
[1757578492274,7.28,223.21,223.15,7.07]
[1757578504491,9.15336541,223.2,223.14,98.11800746]
[1757578509291,7.5,223.16,223.12,4.99800746]
[1757578509590,7.5,223.16,223.11,12.35800746]
[1757578510090,7.5,223.13,223.11,7.36]
[1757578510789,1.65336541,223.14,223.1,109.02]
[1757578511384,1.65336541,223.14,223.08,7.36]
[1757578511589,7.5,223.13,223.08,7.36]
[1757578511785,7.5,223.1,223.08,7.36]
[1757578512687,9.15336541,223.11,223.08,7.36]
[1757578513993,1.65336541,223.11,223.07,0.77955243]
[1757578514194,1.65336541,223.13,223.08,7.36]
[1757578514390,1.65336541,223.13,223.07,0.77955243]
[1757578515286,1.65336541,223.13,223.08,7.36]
[1757578515690,1.65336541,223.13,223.07,0.77955243]
[1757578515890,7.5,223.24,223.08,7.36]
[1757578516197,9.15336541,223.17,223.08,7.36]
[1757578518890,1.65336541,223.14,223.07,5.77755989]
[1757578519095,7.5,223.13,223.07,8.13955243]
[1757578524898,7.5,223.16,223.07,8.13955243]
[1757578525099,1.65336541,223.15,223.07,8.13955243]
[1757578525600,7.5,223.14,223.07,8.13955243]
[1757578526795,1.65336541,223.12,223.07,8.13955243]
[1757578527001,7.5,223.11,223.07,8.13955243]
[1757578527203,1.65336541,223.12,223.07,8.13955243]
[1757578527598,6.91,223.11,223.07,0.77955243]
[1757578527796,1.65336541,223.09,223.05,109.02]
[1757578528105,8.56336541,223.06,223.05,109.02]
[1757578532606,8.56336541,223.06,223.0,109.02]
[1757578537509,1.65336541,223.03,223.0,116.1]
[1757578537911,8.56336541,223.03,223.0,116.1]
[1757578538610,8.56336541,223.03,223.01,7.08]
[1757578542112,1.65336541,223.03,223.0,109.02]
[1757578542313,8.56336541,223.03,223.0,116.1]
[1757578542709,8.56336541,223.03,223.0,109.02]
[1757578542913,1.65336541,223.03,223.0,109.02]
[1757578543308,1.65336541,223.03,223.01,7.08]
[1757578544017,1.65336541,223.03,223.0,109.02]
[1757578544213,1.65336541,223.03,223.01,7.08]
[1757578544712,8.56336541,223.03,223.01,7.08]
[1757578551020,8.56336541,223.03,223.0,109.02]
[1757578551219,8.56336541,223.03,223.01,7.08]